bitfinex/quotes_SOLUSD_20241220
["timestamp","ask_amount","ask_price","bid_price","bid_amount"]
[1734663209311,24.20510107,199.25,199.18,24.20510107]
[1734663212643,24.20510107,199.24,199.18,24.20510107]
[1734663212820,24.20510107,199.25,199.18,24.20510107]
[1734663213246,10.83048765,199.29,199.18,24.20510107]
[1734663213247,24.20510107,199.24,199.18,24.20510107]
[1734663213720,24.20510107,199.23,199.16,24.20510107]
[1734663214241,24.20510107,199.18,199.12,1.553]
[1734663214427,8.7825,199.26,199.1,24.20510107]
[1734663214428,24.20510107,199.17,199.1,24.20510107]
[1734663214772,24.20510107,199.13,199.07,1.553]
[1734663214943,24.20510107,199.11,199.05,0.6218071]
[1734663215633,24.20510107,199.1,199.05,0.6218071]
[1734663216334,24.20510107,199.08,199.05,0.6218071]
[1734663216543,24.20510107,199.07,199.05,0.6218071]
[1734663216734,24.20510107,199.06,199.05,0.6218071]
[1734663218849,47.98198507,199.06,199.05,7.1e-06]
[1734663219442,47.98198507,199.06,198.87,0.75367264]
[1734663219443,23.776884,199.01,198.88,30.34340107]
[1734663219615,24.20510107,198.92,198.85,24.82690817]
[1734663220246,24.20510107,198.95,198.88,24.20510107]
[1734663220451,24.20510107,198.95,198.89,24.20510107]
[1734663220634,24.20510107,198.95,198.88,24.20510107]
[1734663221337,24.20510107,198.96,198.9,24.20510107]
[1734663221847,24.20510107,198.96,198.89,24.20510107]
[1734663222031,8.794,199.0,198.9,24.20510107]
[1734663222032,24.20510107,198.97,198.9,24.20510107]
[1734663222227,24.20510107,198.96,198.9,24.20510107]
[1734663222434,24.20510107,198.91,198.85,0.6218071]
[1734663222835,24.20510107,198.92,198.85,24.82690817]
[1734663223046,24.20510107,198.93,198.86,24.20510107]
[1734663223759,24.20510107,198.97,198.9,24.20510107]
[1734663223931,8.7922,199.04,198.92,24.20510107]
[1734663224130,24.20510107,198.99,198.92,24.20510107]
[1734663224324,24.20510107,199.0,198.93,24.20510107]
[1734663224528,24.20510107,199.01,198.94,24.20510107]
[1734663224728,24.20510107,199.03,198.96,24.20510107]
[1734663225142,24.20510107,199.07,199.0,24.20510107]
[1734663225529,24.20510107,199.08,199.01,24.20510107]
[1734663225732,24.20510107,199.12,199.05,24.20510107]
[1734663225931,8.787,199.16,199.01,0.75343827]
[1734663226149,8.787,199.16,199.03,20.0]
[1734663227066,24.20510107,199.12,199.04,24.20510107]
[1734663228064,24.20510107,199.12,199.04,25.80500107]
[1734663228239,24.20510107,199.12,199.05,24.20510107]
[1734663228435,24.20510107,199.16,199.09,24.20510107]
[1734663228754,24.20510107,199.18,199.1,24.20510107]
[1734663228951,24.20510107,199.16,199.09,44.20510107]
[1734663229857,24.20510107,199.17,199.1,24.20510107]
[1734663230057,24.20510107,199.2,199.13,24.20510107]
[1734663230366,24.20510107,199.2,199.12,24.20510107]
[1734663230534,24.20510107,199.2,199.13,24.20510107]
[1734663230734,24.20510107,199.19,199.12,24.20510107]
[1734663230941,24.20510107,199.17,199.1,24.20510107]
[1734663231142,24.20510107,199.17,199.13,20.0]
[1734663231337,24.20510107,199.16,199.09,24.20510107]
[1734663231537,24.20510107,199.16,199.09,44.20510107]
[1734663231862,8.7829,199.25,199.1,24.20510107]
[1734663231863,24.20510107,199.17,199.1,24.20510107]
[1734663232739,24.20510107,199.16,199.09,44.20510107]
[1734663233557,24.20510107,199.15,199.09,20.0]
[1734663233760,24.20510107,199.14,199.09,20.0]
[1734663233933,24.20510107,199.17,199.1,24.20510107]
[1734663234136,24.20510107,199.19,199.12,24.20510107]
[1734663234335,24.20510107,199.17,199.1,24.20510107]
[1734663235035,24.20510107,199.2,199.13,24.20510107]
[1734663235235,15.1171,199.31,199.17,24.20510107]
[1734663235549,15.1171,199.31,199.14,0.75311714]
[1734663235550,24.20510107,199.25,199.18,24.20510107]
[1734663235748,24.20510107,199.26,199.19,24.20510107]
[1734663236860,24.20510107,199.26,199.16,2.33666924]
[1734663236861,24.20510107,199.27,199.17,6.487]
[1734663237034,24.20510107,199.31,199.24,24.20510107]
[1734663237235,24.20510107,199.32,199.25,24.20510107]
[1734663237862,24.20510107,199.28,199.2,24.20510107]
[1734663238162,24.20510107,199.25,199.18,24.20510107]
[1734663238468,24.20510107,199.24,199.17,30.69210107]
[1734663238764,24.20510107,199.22,199.17,6.487]
[1734663239267,24.20510107,199.22,199.16,1.5838]
[1734663239836,24.20510107,199.23,199.16,1.5838]
[1734663240142,8.7825,199.26,199.12,30.25240107]
[1734663240143,24.20510107,199.19,199.12,30.25240107]
[1734663240641,24.20510107,199.17,199.1,25.79910107]
[1734663240844,24.20510107,199.18,199.11,24.20510107]
[1734663241544,24.20510107,199.17,199.1,25.79910107]
[1734663242254,24.20510107,199.15,199.07,24.20510107]
[1734663242460,24.20510107,199.12,199.05,30.40590107]
[1734663243036,24.20510107,199.15,199.07,24.20510107]
[1734663243241,24.20510107,199.17,199.1,24.20510107]
[1734663243440,24.20510107,199.17,199.07,0.75330939]
[1734663243441,24.20510107,199.2,199.13,24.20510107]
[1734663243645,24.20510107,199.22,199.15,24.20510107]
[1734663243968,8.7817,199.28,199.08,43.776884]
[1734663244167,8.7817,199.28,199.17,24.20510107]
[1734663244370,24.20510107,199.24,199.17,24.20510107]
[1734663245168,24.20510107,199.28,199.21,24.20510107]
[1734663245472,8.78,199.32,199.22,24.20680668]
[1734663245473,24.20680668,199.29,199.22,24.20680668]
[1734663245647,24.20680668,199.31,199.24,24.20680668]
[1734663245850,24.20680668,199.31,199.23,24.20680668]
[1734663246067,24.20680668,199.31,199.24,24.20680668]
[1734663246369,24.20680668,199.31,199.22,0.75274858]
[1734663246370,24.20680668,199.36,199.29,24.20680668]
[1734663246744,24.20680668,199.33,199.26,24.20680668]
[1734663246943,24.20680668,199.31,199.21,20.75253678]
[1734663247149,32.98330668,199.4,199.21,20.75253678]
[1734663247365,24.20680668,199.33,199.26,24.20680668]
[1734663247566,24.20680668,199.35,199.28,24.20680668]
[1734663247872,24.20680668,199.34,199.27,24.20680668]
[1734663248171,24.20680668,199.34,199.26,24.20680668]
[1734663248354,24.20680668,199.34,199.27,24.20680668]
[1734663248667,24.20680668,199.36,199.29,24.20680668]
[1734663248868,24.20680668,199.38,199.3,24.20680668]
[1734663249168,24.20680668,199.37,199.3,24.20680668]
[1734663249370,24.20680668,199.36,199.29,24.20680668]
[1734663249670,24.20680668,199.39,199.32,24.20680668]
[1734663250042,24.20680668,199.38,199.31,24.20680668]
[1734663250448,24.20680668,199.37,199.3,30.86750668]
[1734663250775,24.20680668,199.38,199.31,24.20680668]
[1734663252553,24.20680668,199.42,199.35,24.20680668]
[1734663252750,24.20680668,199.43,199.36,24.20680668]
[1734663253470,15.1667,199.48,199.38,24.20680668]
[1734663253471,24.20680668,199.44,199.38,24.20680668]
[1734663253641,24.20680668,199.45,199.38,24.20680668]
[1734663253846,24.20680668,199.46,199.4,24.20680668]
[1734663254045,24.20680668,199.48,199.41,24.20680668]
[1734663254850,24.20680668,199.48,199.39,0.75216306]
[1734663255049,24.20680668,199.42,199.35,24.20680668]
[1734663255490,24.20680668,199.41,199.37,20.0]
[1734663255666,24.20680668,199.4,199.33,44.20680668]
[1734663255857,24.20680668,199.37,199.3,8.2044]
[1734663256047,24.20680668,199.37,199.3,32.41120668]
[1734663256255,24.18893719,199.37,199.3,32.39333719]
[1734663256450,24.18893719,199.5,199.28,24.18893719]
[1734663256656,24.18893719,199.35,199.28,24.18893719]
[1734663257381,24.18893719,199.34,199.27,24.18893719]
[1734663257591,32.96553719,199.4,199.25,30.61113719]
[1734663257592,24.18893719,199.32,199.25,30.61113719]
[1734663257793,24.18893719,199.34,199.27,24.18893719]
[1734663257996,24.18893719,199.37,199.3,24.18893719]
[1734663258296,24.18893719,199.37,199.31,24.18893719]
[1734663258674,24.18893719,199.39,199.32,24.18893719]
[1734663258989,24.18893719,199.4,199.33,24.18893719]
[1734663259161,24.18893719,199.38,199.31,24.18893719]
[1734663259363,8.7747,199.44,199.29,24.18893719]
[1734663259364,24.18893719,199.35,199.29,24.18893719]
[1734663260757,23.776884,199.18,198.96,51.05152892]
[1734663260988,23.776884,199.18,199.03,30.0]
[1734663260989,20.0,199.06,199.03,30.0]
[1734663261293,20.0,199.06,198.96,45.04722892]
[1734663261294,23.776884,199.01,199.0,5.47845709]
[1734663261590,23.776884,199.01,198.96,40.55992892]
[1734663261591,23.776884,198.97,198.96,40.55992892]
[1734663261788,24.18893719,198.97,198.85,0.6218071]
[1734663261972,24.18893719,198.92,198.85,0.6218071]
[1734663262482,24.18893719,198.9,198.85,0.6218071]
[1734663262680,123.16036844,198.91,198.85,0.6218071]
[1734663262875,123.16036844,198.91,198.84,24.18893719]
[1734663262876,10.26336403,198.89,198.84,7.33112744]
[1734663263073,10.26336403,198.9,198.84,15.01319636]
[1734663263272,10.26336403,198.9,198.88,39.48323288]
[1734663263473,112.89700441,198.91,198.9,20.0]
[1734663263999,119.73321175,198.91,198.88,28.83710154]
[1734663264295,64.99225254,198.91,198.88,28.08310233]
[1734663264993,64.99225254,198.91,198.9,39.48323288]
[1734663265308,25.43405561,199.04,198.8,39.48323288]
[1734663265309,54.97693632,198.94,198.85,0.7538978]
[1734663265590,7.74620602,198.92,198.86,39.48323288]
[1734663265796,7.74620602,198.92,198.91,39.48323288]
[1734663265968,7.74620602,198.94,198.91,39.48323288]
[1734663266169,7.74620602,198.94,198.93,39.48323288]
[1734663266591,7.74620602,198.94,198.93,63.26011688]
[1734663266796,39.48323288,199.03,198.93,63.26011688]
[1734663266981,39.48323288,199.03,198.97,20.0]
[1734663267577,0.7525,199.09,198.96,20.0]
[1734663267908,39.48323288,199.01,198.96,20.0]
[1734663268272,39.48323288,198.99,198.94,20.0]
[1734663268890,39.48323288,199.01,198.96,20.0]
[1734663269202,39.48323288,199.03,198.98,20.0]
[1734663270479,0.7525,199.02,198.98,20.0]
[1734663270695,39.48323288,199.03,198.98,20.0]
[1734663271005,39.48323288,199.01,198.93,39.48323288]
[1734663271302,0.7525,199.0,198.93,39.48323288]
[1734663271508,39.48323288,199.01,198.93,39.48323288]
[1734663272405,39.48323288,199.03,198.95,39.48323288]
[1734663273213,0.7525,199.02,198.95,39.48323288]
[1734663273805,39.48323288,198.99,198.92,39.48323288]
[1734663275313,39.48323288,198.95,198.88,39.48323288]
[1734663275477,0.7525,198.94,198.87,39.48323288]
[1734663276007,0.7525,198.94,198.88,39.48323288]
[1734663278328,0.7525,198.94,198.86,39.48323288]
[1734663278329,39.48323288,198.93,198.86,39.48323288]
[1734663279193,0.7525,198.92,198.85,39.48323288]
[1734663281301,39.48323288,198.91,198.84,39.48323288]
[1734663281501,0.7525,198.9,198.84,39.48323288]
[1734663281702,0.7525,198.9,198.83,39.48323288]
[1734663281910,39.48323288,198.94,198.86,39.48323288]
[1734663282111,0.7525,198.93,198.86,39.48323288]
[1734663282297,39.48323288,198.94,198.87,39.48323288]
[1734663282492,39.48323288,198.94,198.8,40.23749391]
[1734663282493,39.48323288,198.93,198.86,39.48323288]
[1734663282694,40.23573288,198.93,198.86,39.48323288]
[1734663282901,39.48323288,198.92,198.85,39.48323288]
[1734663283215,39.48323288,198.92,198.83,20.0]
[1734663283216,0.7525,198.91,198.84,24.2972781]
[1734663283425,24.2972781,198.85,198.76,6.6624]
[1734663283590,25.0497781,198.84,198.76,6.6624]
[1734663283791,24.2972781,198.83,198.76,24.2972781]
[1734663283992,24.2972781,198.81,198.74,24.2972781]
[1734663284191,24.2972781,198.82,198.75,25.8344781]
[1734663284387,0.7525,198.81,198.76,24.2972781]
[1734663284836,0.56910725,198.84,198.77,24.2972781]
[1734663285028,24.2972781,198.86,198.79,24.2972781]
[1734663285324,24.2972781,198.88,198.8,24.2972781]
[1734663285493,20.0,198.89,198.8,24.2972781]
[1734663285699,24.2972781,198.88,198.81,24.2972781]
[1734663285900,24.2972781,198.87,198.79,24.2972781]
[1734663286118,24.2972781,198.86,198.79,24.2972781]
[1734663286321,24.2972781,198.87,198.79,24.2972781]
[1734663287025,3.0291272,198.92,198.78,24.2972781]
[1734663287026,24.2972781,198.86,198.78,24.2972781]
[1734663287734,24.2972781,198.86,198.75,1.5372]
[1734663287917,24.2972781,198.86,198.78,24.2972781]
[1734663288118,24.2972781,198.86,198.79,24.2972781]
[1734663289124,24.2972781,198.87,198.8,24.2972781]
[1734663289436,24.2972781,198.89,198.81,24.2972781]
[1734663290907,24.2972781,198.89,198.82,24.2972781]
[1734663291312,24.2972781,198.9,198.82,24.2972781]
[1734663291524,24.2972781,198.89,198.81,24.2972781]
[1734663291729,23.776884,198.94,198.82,24.2972781]
[1734663292034,24.2972781,198.9,198.82,24.2972781]
[1734663292205,24.2972781,198.89,198.81,24.2972781]
[1734663293641,6.1123,199.03,198.88,24.2972781]
[1734663293843,24.2972781,198.96,198.88,24.2972781]
[1734663294428,24.2972781,198.96,198.84,0.75398589]
[1734663294429,24.2972781,198.96,198.86,44.2972781]
[1734663295038,24.2972781,198.94,198.86,44.2972781]
[1734663296738,24.2972781,198.96,198.87,24.5309564]
[1734663296943,24.2972781,198.98,198.9,24.2972781]
[1734663297364,24.2972781,198.98,198.87,24.5309564]
[1734663297365,24.2972781,198.96,198.88,24.2972781]
[1734663297534,24.2972781,198.96,198.87,24.5309564]
[1734663299048,24.2972781,198.96,198.89,23.776884]
[1734663299222,24.2972781,198.96,198.88,1.5539]
[1734663299543,24.2972781,198.94,198.88,1.5539]
[1734663300344,24.2972781,198.92,198.84,24.2972781]
[1734663301239,24.2972781,198.88,198.82,25.8511781]
[1734663301443,24.2972781,198.87,198.8,24.2972781]
[1734663301752,24.2972781,198.87,198.78,6.2492]
[1734663301923,24.2972781,198.85,198.76,1.5634]
[1734663302122,24.2972781,198.79,198.73,6.2492]
[1734663302328,24.2972781,198.8,198.73,30.5464781]
[1734663302627,24.2972781,198.81,198.73,30.5464781]
[1734663303047,24.2972781,198.8,198.73,30.5464781]
[1734663303243,24.2972781,198.79,198.72,24.2972781]
[1734663304247,24.2972781,198.79,198.71,24.2972781]
[1734663304462,24.2972781,198.79,198.71,6.80336664]
[1734663306464,17.5982,198.89,198.69,24.2972781]
[1734663306465,24.2972781,198.76,198.69,24.2972781]
[1734663306648,24.2972781,198.76,198.68,30.5167781]
[1734663306853,24.2972781,198.76,198.69,24.2972781]
[1734663307046,8.8026,198.81,198.69,23.7571481]
[1734663307368,24.2972781,198.76,198.69,23.7571481]
[1734663308577,24.2972781,198.76,198.68,6.2195]
[1734663308578,24.2972781,198.77,198.7,24.2972781]
[1734663308979,24.2972781,198.76,198.69,24.2972781]
[1734663309972,24.2972781,198.77,198.7,24.2972781]
[1734663310561,24.2972781,198.8,198.73,24.2972781]
[1734663312468,24.2972781,198.78,198.71,24.2972781]
[1734663312845,24.2972781,198.76,198.69,24.2972781]
[1734663313164,24.2972781,198.72,198.66,0.6218071]
[1734663313572,24.2972781,198.72,198.66,24.9190852]
[1734663313744,24.2972781,198.74,198.67,24.2972781]
[1734663315568,24.2972781,198.73,198.66,24.9190852]
[1734663315946,24.2972781,198.72,198.66,0.6218071]
[1734663316482,24.2972781,198.67,198.66,0.6218071]
[1734663319552,24.2972781,198.67,198.66,1e-08]
[1734663320678,134.69999999,198.62,198.53,24.2972781]
[1734663320852,24.2972781,198.59,198.52,24.2972781]
[1734663321550,24.2972781,198.61,198.54,24.2972781]
[1734663322980,32.585884,198.66,198.56,24.2972781]
[1734663322981,24.2972781,198.63,198.56,24.2972781]
[1734663323182,24.2972781,198.64,198.57,24.2972781]
[1734663323487,24.2972781,198.63,198.57,24.2972781]
[1734663324887,24.2972781,198.63,198.51,7.8435]
[1734663324888,24.2972781,198.62,198.55,24.2972781]
[1734663326486,24.2972781,198.61,198.54,44.2972781]
[1734663326785,24.2972781,198.64,198.57,24.2972781]
[1734663328062,24.2972781,198.64,198.58,24.2972781]
[1734663328471,24.2972781,198.62,198.56,24.2972781]
[1734663329285,24.2972781,198.62,198.55,44.2972781]
[1734663329493,24.2972781,198.61,198.55,20.0]
[1734663329668,24.2972781,198.62,198.55,44.2972781]
[1734663330192,23.776884,198.67,198.53,24.2972781]
[1734663330394,24.2972781,198.6,198.53,24.2972781]
[1734663330883,24.2972781,198.57,198.51,24.2972781]
[1734663331065,24.2972781,198.58,198.51,24.2972781]
[1734663331266,24.2972781,198.57,198.5,24.2972781]
[1734663331991,23.776884,198.67,198.48,24.2972781]
[1734663331992,24.2972781,198.55,198.48,24.2972781]
[1734663332288,24.2972781,198.6,198.46,6.6818071]
[1734663332289,24.2972781,198.53,198.46,24.9190852]
[1734663332479,45.6982,198.66,198.5,24.2972781]
[1734663332683,24.2972781,198.57,198.5,24.2972781]
[1734663332880,10.4622,198.66,198.46,13.97394252]
[1734663333082,24.2972781,198.61,198.46,13.97394252]
[1734663333390,24.2972781,198.62,198.55,24.2972781]
[1734663333692,24.2972781,198.61,198.54,24.2972781]
[1734663333987,24.2972781,198.56,198.47,1.6371]
[1734663334192,24.2972781,198.56,198.49,24.2972781]
[1734663334372,24.2972781,198.55,198.48,24.2972781]
[1734663335292,24.2972781,198.53,198.46,24.9190852]
[1734663335895,24.2972781,198.52,198.46,0.6218071]
[1734663336069,24.2972781,198.51,198.46,0.6218071]
[1734663336264,24.2972781,198.5,198.46,0.6218071]
[1734663336490,24.2972781,198.47,198.46,0.6218071]
[1734663340792,24.2972781,198.48,198.46,0.6218071]
[1734663341290,24.2972781,198.47,198.46,0.6218071]
[1734663343785,48.0741621,198.47,198.46,0.6218071]
[1734663344785,49.52369699,198.47,198.46,0.6218071]
[1734663345111,49.52369699,198.47,198.46,7.1e-06]
[1734663345408,3.01782789,198.52,198.46,7.1e-06]
[1734663345409,10.57392789,198.52,198.46,7.1e-06]
[1734663345588,24.2972781,198.49,198.46,7.1e-06]
[1734663345789,24.2972781,198.48,198.46,7.1e-06]
[1734663345985,24.2972781,198.47,198.46,7.1e-06]
[1734663348685,24.2972781,198.48,198.46,7.1e-06]
[1734663349016,15.25566821,198.47,198.46,7.1e-06]
[1734663349384,15.25566821,198.47,198.37,0.27169877]
[1734663349385,15.25566821,198.47,198.39,15.25566821]
[1734663349716,15.25566821,198.47,198.37,0.27169877]
[1734663349717,15.25566821,198.42,198.37,0.27169877]
[1734663350589,15.25566821,198.46,198.39,15.25566821]
[1734663351491,15.25566821,198.47,198.4,15.25566821]
[1734663351713,15.25566821,198.49,198.43,15.25566821]
[1734663352014,15.25566821,198.49,198.42,15.25566821]
[1734663352313,15.25566821,198.48,198.41,15.25566821]
[1734663352905,15.25566821,198.48,198.37,1.0275646]
[1734663352906,13.9471,198.57,198.45,15.25566821]
[1734663353112,24.39585478,198.52,198.45,24.39585478]
[1734663353285,24.39585478,198.51,198.44,24.39585478]
[1734663353486,24.39585478,198.48,198.42,30.60645478]
[1734663353693,24.39585478,198.47,198.42,6.2106]
[1734663353915,24.39585478,198.47,198.41,24.39585478]
[1734663354787,24.39585478,198.48,198.41,24.39585478]
[1734663354994,24.39585478,198.49,198.42,24.39585478]
[1734663355219,24.39585478,198.5,198.44,24.39585478]
[1734663355388,24.39585478,198.51,198.44,24.39585478]
[1734663356381,24.39585478,198.5,198.43,24.39585478]
[1734663356900,24.39585478,198.49,198.42,24.39585478]
[1734663357521,24.39585478,198.46,198.4,1.574]
[1734663357683,24.39585478,198.45,198.4,1.574]
[1734663357886,24.39585478,198.46,198.4,1.574]
[1734663358787,24.39585478,198.47,198.4,25.96985478]
[1734663359411,24.39585478,198.49,198.42,24.39585478]
[1734663359613,17.6229,198.61,198.45,24.39585478]
[1734663359614,24.39585478,198.52,198.45,24.39585478]
[1734663360386,24.39585478,198.54,198.47,24.39585478]
[1734663360586,24.39585478,198.57,198.5,24.39585478]
[1734663360799,24.39585478,198.58,198.51,24.39585478]
[1734663361331,24.39585478,198.57,198.5,24.39585478]
[1734663361628,24.39585478,198.56,198.49,30.57735478]
[1734663362219,24.39585478,198.51,198.45,0.75549093]
[1734663362526,24.39585478,198.5,198.44,26.1815]
[1734663362724,24.39585478,198.6,198.46,24.39585478]
[1734663362725,24.39585478,198.53,198.46,24.39585478]
[1734663363228,24.39585478,198.55,198.48,24.39585478]
[1734663363429,24.39585478,198.54,198.47,24.39585478]
[1734663363723,24.39585478,198.54,198.46,24.39585478]
[1734663363925,24.39585478,198.54,198.47,24.39585478]
[1734663364626,24.39585478,198.57,198.5,24.39585478]
[1734663365500,24.39585478,198.56,198.49,24.39585478]
[1734663365700,7.5525,198.61,198.47,0.75559805]
[1734663365701,24.39585478,198.55,198.48,20.0]
[1734663365905,24.39585478,198.52,198.48,20.0]
[1734663366108,24.39585478,198.52,198.45,24.39585478]
[1734663366308,24.39585478,198.5,198.44,6.1815]
[1734663366502,24.39585478,198.49,198.44,6.1815]
[1734663366908,24.39585478,198.5,198.44,6.1815]
[1734663368200,7.5559,198.52,198.44,6.1815]
[1734663368201,24.39585478,198.49,198.44,6.1815]
[1734663368514,7.5559,198.52,198.4,1.574]
[1734663368515,24.39585478,198.46,198.4,1.574]
[1734663368829,24.39585478,198.47,198.4,25.96985478]
[1734663369010,24.39585478,198.49,198.41,24.39585478]
[1734663370422,8.97952067,198.52,198.42,24.39585478]
[1734663370423,24.39585478,198.5,198.42,24.39585478]
[1734663372030,24.39585478,198.53,198.44,24.39585478]
[1734663372327,24.39585478,198.54,198.46,24.39585478]
[1734663372630,7.5547,198.56,198.42,0.7558006]
[1734663372631,24.39585478,198.51,198.42,0.7558006]
[1734663372819,24.39585478,198.5,198.41,24.39585478]
[1734663373022,24.39585478,198.46,198.4,1.574]
[1734663373325,43.776884,198.52,198.4,1.574]
[1734663373522,24.39585478,198.46,198.4,1.574]
[1734663374029,24.39585478,198.45,198.37,24.66755355]
[1734663374825,24.39585478,198.47,198.39,24.39585478]
[1734663375212,7.5562,198.51,198.37,20.27169877]
[1734663375213,24.39585478,198.48,198.41,24.39585478]
[1734663375397,24.39585478,198.48,198.37,21.02762043]
[1734663375398,24.39585478,198.49,198.42,24.39585478]
[1734663375604,24.39585478,198.48,198.41,24.39585478]
[1734663376533,24.39585478,198.48,198.4,24.39585478]
[1734663376729,24.39585478,198.48,198.41,24.39585478]
[1734663376930,24.39585478,198.49,198.41,24.39585478]
[1734663377238,24.39585478,198.51,198.44,24.39585478]
[1734663377928,24.39585478,198.57,198.49,24.39585478]
[1734663378133,7.5535,198.59,198.5,24.39585478]
[1734663378320,24.39585478,198.58,198.51,24.39585478]
[1734663378517,24.39585478,198.58,198.52,0.75541704]
[1734663378716,24.39585478,198.54,198.49,20.0]
[1734663378937,24.39585478,198.6,198.46,24.39585478]
[1734663378938,24.39585478,198.53,198.46,24.39585478]
[1734663380442,24.39585478,198.55,198.48,24.39585478]
[1734663380737,24.39585478,198.55,198.46,0.75562682]
[1734663380738,24.39585478,198.58,198.51,48.17273878]
[1734663381237,24.39585478,198.61,198.54,24.39585478]
[1734663381440,24.39585478,198.61,198.52,0.75533951]
[1734663381441,24.39585478,198.61,198.53,68.17273878]
[1734663381643,24.39585478,198.61,198.54,25.1511267]
[1734663382330,24.39585478,198.61,198.53,44.39585478]
[1734663382643,24.39585478,198.59,198.52,24.39585478]
[1734663383516,7.5526,198.61,198.51,24.39585478]
[1734663383731,24.39585478,198.55,198.48,24.39585478]
[1734663383929,24.39585478,198.51,198.45,7.6635]
[1734663384126,24.39585478,198.5,198.45,7.6635]
[1734663384348,24.39585478,198.49,198.42,24.39585478]
[1734663384528,24.39585478,198.48,198.41,24.39585478]
[1734663385041,15.25423529,198.48,198.4,21.29923529]
[1734663385248,15.25423529,198.47,198.4,21.29923529]
[1734663385847,15.25423529,198.48,198.4,21.29923529]
[1734663386148,15.25423529,198.48,198.41,15.25423529]
[1734663387041,15.25423529,198.48,198.4,6.045]
[1734663387042,24.40778097,198.47,198.4,6.045]
[1734663387231,24.40778097,198.46,198.39,25.90838097]
[1734663388149,24.40778097,198.47,198.39,25.90838097]
[1734663388747,24.40778097,198.46,198.39,25.90838097]
[1734663388949,24.40778097,198.47,198.39,25.90838097]
[1734663389150,24.40778097,198.49,198.41,24.40778097]
[1734663390551,24.40778097,198.48,198.41,24.40778097]
[1734663390753,24.40778097,198.49,198.41,24.40778097]
[1734663391060,24.40778097,198.51,198.44,24.40778097]
[1734663391758,24.40778097,198.49,198.42,24.40778097]
[1734663391955,24.40778097,198.46,198.39,25.90838097]
[1734663392164,24.40778097,198.45,198.38,24.40778097]
[1734663393062,24.40778097,198.46,198.39,24.40778097]
[1734663393268,24.40778097,198.47,198.4,24.40778097]
[1734663393556,24.40778097,198.46,198.39,24.40778097]
[1734663395130,24.40778097,198.46,198.38,44.40778097]
[1734663395634,24.40778097,198.46,198.38,24.40778097]
[1734663395841,24.40778097,198.43,198.37,0.27169877]
[1734663396163,24.40778097,198.42,198.37,0.27169877]
[1734663396740,24.40778097,198.43,198.37,0.27169877]
[1734663397145,9.09257781,198.48,198.37,0.27169877]
[1734663397146,24.40778097,198.4,198.37,0.27169877]
[1734663397349,24.40778097,198.38,198.37,0.27169877]
[1734663399338,48.18466497,198.38,198.37,0.27169877]
[1734663400484,48.18466497,198.38,198.37,9.877e-05]
[1734663401073,24.40778097,198.38,198.37,9.877e-05]
[1734663403574,23.776884,198.36,198.26,0.6218071]
[1734663403755,24.40778097,198.32,198.26,0.6218071]
[1734663404148,24.40778097,198.31,198.26,0.6218071]
[1734663404765,24.40778097,198.3,198.26,0.6218071]
[1734663405362,24.40778097,198.29,198.26,0.6218071]
[1734663405937,24.40778097,198.31,198.26,0.6218071]
[1734663407045,15.28165496,198.3,198.26,0.6218071]
[1734663407475,15.28165496,198.31,198.26,0.6218071]
[1734663408047,15.28165496,198.3,198.26,0.6218071]
[1734663410758,7.5623,198.36,198.28,15.28165496]
[1734663411082,15.28165496,198.36,198.29,15.28165496]
[1734663411561,15.28165496,198.35,198.28,15.28165496]
[1734663412243,15.28165496,198.36,198.29,15.28165496]
[1734663412946,15.28165496,198.38,198.31,15.28165496]
[1734663413147,15.28165496,198.39,198.32,15.28165496]
[1734663413376,10.63897364,198.44,198.35,15.28165496]
[1734663413674,7.5592,198.44,198.37,15.28165496]
[1734663413880,15.28165496,198.45,198.37,15.28165496]
[1734663414086,15.28165496,198.44,198.37,15.28165496]
[1734663414284,15.28165496,198.41,198.34,15.28165496]
[1734663414998,15.28165496,198.4,198.33,1.5326]
[1734663415686,15.28165496,198.4,198.33,16.81425496]
[1734663417884,15.28165496,198.41,198.33,16.81425496]
[1734663418090,4.70279081,198.47,198.33,16.81425496]
[1734663418091,15.28165496,198.43,198.36,15.28165496]
[1734663418865,15.28165496,198.41,198.34,15.28165496]
[1734663419065,15.28165496,198.38,198.32,6.5442]
[1734663419288,15.28165496,198.39,198.32,21.82585496]
[1734663420264,7.5596,198.43,198.32,21.82585496]
[1734663420265,35.28165496,198.4,198.32,21.82585496]
[1734663420469,15.28165496,198.41,198.34,15.28165496]
[1734663422170,15.28165496,198.42,198.35,15.28165496]
[1734663423892,15.28165496,198.43,198.36,15.28165496]
[1734663424094,15.28165496,198.43,198.32,7.30033013]
[1734663424095,15.28165496,198.44,198.37,15.28165496]
[1734663424298,15.28165496,198.43,198.36,15.28165496]
[1734663425001,15.28165496,198.41,198.34,15.28165496]
[1734663425300,15.28165496,198.42,198.35,15.28165496]
[1734663425596,15.28165496,198.43,198.36,15.28165496]
[1734663425799,15.28165496,198.44,198.37,15.28165496]
[1734663426306,15.28165496,198.43,198.35,15.28165496]
[1734663428003,15.28165496,198.42,198.35,15.28165496]